Cogmind - Beta 17 @@@ ROGUE MODE // 2026.08.09 @ 21:26:57 Player: 4R-ZE3 Result: Destroyed by S-43 Plague with Heavy Machine Gun Performance ------------- Evolutions (9) 4500 Regions Visited (25) 5000 Robots Destroyed (314) 1570 Value Destroyed (14992) 14992 Prototype IDs (39) 780 Alien Tech Used (0) 0 Bonus (12144) 12144 TOTAL SCORE: 38986 Bonus ------- High Alert Combat Kills 2093 Follower Combat Kills 1408 Network Hubs Disabled 200 Met Data Miner 300 Met Warlord at Base 500 MAIN.C Attacked Warlord 500 Warlord Defense Kills 978 Built Enhanced Grunts 300 Met R17 at Cetus 500 Met R17 at Research 2000 Met Warlord at Research 2000 Invited to Help at Command 2000 Friendly Fire -635 Cogmind --------- Core Integrity 0/1600 Matter 73/300 Energy 100/100 System Corruption 17% Temperature Cool (0) Movement Core (50) Location -1/Access Parts ------- > --- POWER (3) -------- (None) > --- PROPULSION (6) --- (None) > --- UTILITY (12) ----- (None) > --- WEAPON (4) ------- (None) > --- INVENTORY (5) ---- Myomer Leg Heavy Shield Leg Long-range Sensor Array Heavy Machine Gun Peak State ------------ > --- POWER ------------ Quantum Reactor Quantum Reactor Light Quantum Reactor > --- PROPULSION ------- Flexi-carbon Leg Myomer Leg Shield Leg Biometal Leg Enhanced Biometal Leg Enhanced Biometal Leg > --- UTILITY ---------- Advanced Power Amplifier Advanced Heat Sink Experimental Cooling System High-capacity Storage Unit Improved Armor Integrity Analyzer Advanced Phase Shifter Centrium Light Armor Plating Centrium Light Armor Plating Heavy Reflective Plating Graphene Brace Advanced Hacking Suite > --- WEAPON ----------- Quantum Rifle Enhanced Quantum Rifle Enhanced Nova Cannon Enhanced Hardcell Cannon > --- INVENTORY -------- Particle Reactor Graviton Reactor Light Quantum Reactor Medium Treads Medium Treads Medium Treads Advanced Medium Treads Biometal Heavy Treads Biometal Heavy Treads Flexi-carbon Leg Myomer Leg Myomer Leg Heavy Shield Leg Enhanced Hardcell Cannon Compact Linear Accelerator [Rating: 198] Favorites ----------- Power Quantum Reactor Engine Cooled Ion Engine Power Core Enhanced Fission Core Reactor Quantum Reactor Propulsion Centrium Heavy Treads Treads Centrium Heavy Treads Leg Aluminum Leg Hover Unit Improved Gyrokinetic Inverter Flight Unit Q-thruster Utility Large Storage Unit Device Improved Cooling System Storage Large Storage Unit Processor Improved Signal Interpreter Hackware Hacking Suite Protection Centrium Medium Armor Plating Weapon Heavy Ion Cannon Energy Gun Heavy Beamcaster Energy Cannon Heavy Ion Cannon Ballistic Gun Autogun Ballistic Cannon Compact Linear Accelerator Launcher Advanced Micro-nuke Launcher Slashing Weapon Mining Claw Build | -11 -10 -10 -9 -9 -8 -7 -7 -7 -7 -6 -6 -6 -6 -6 -6 -5 -5 -5 -5 -4 -4 -3 -3 -2 -1 ------- Run | Yrd Mat Min Mat Min Mat Fac Low Low Dat Pro Fac Ext Cet Arc Hub Fac Upp Upp War Pro Fac Res Arm Res Acc Slots Evolved 18 | . . . 2 . 2 2 . . . . 2 . . . . 2 . . . . 2 2 . 2 2 Power 2 | . . . . . . . . . . . 1 . . . . . . . . . . 1 . . . Propulsion 4 | . . . 2 . . . . . . . . . . . . . . . . . . . . . 2 Utility 10 | . . . . . 2 2 . . . . 1 . . . . 2 . . . . 1 1 . 1 . Weapon 2 | . . . . . . . . . . . . . . . . . . . . . 1 . . 1 . Parts Attached 338 | 6 8 5 9 1 28 17 4 1 . 4 9 19 6 2 2 16 3 . 14 5 45 60 6 55 13 Power 53 | 1 2 1 1 . 4 2 1 . . . 1 5 2 . . 2 . . . 1 9 10 . 10 1 Engine 12 | 1 1 . . . 4 1 . . . . 1 3 . . . . . . . 1 . . . . . Core 12 | . 1 1 1 . . 1 1 . . . . 2 . . . 2 . . . . 2 1 . . . Reactor 29 | . . . . . . . . . . . . . 2 . . . . . . . 7 9 . 10 1 Propulsion 88 | 2 . . 8 . 8 6 . 1 . . 1 8 2 . . . . . 4 . 4 15 3 21 5 Treads 19 | 2 . . 3 . . . . . . . . . 2 . . . . . 4 . 4 1 . 2 1 Leg 52 | . . . 5 . 8 6 . 1 . . 1 8 . . . . . . . . . 12 . 7 4 Wheel . | . . . . . . . . . . . . . . . . . . . . . . . . . . Hover 5 | . . . . . . . . . . . . . . . . . . . . . . . 1 4 . Flight 12 | . . . . . . . . . . . . . . . . . . . . . . 2 2 8 . Utility 138 | 1 2 2 . 1 12 6 2 . . 4 5 5 2 2 2 11 2 . 9 3 21 23 3 14 6 Device 78 | . . 2 . 1 4 2 1 . . 2 3 2 . 1 1 5 1 . 5 2 12 18 3 8 5 Storage 8 | 1 1 . . . 2 . . . . . 1 . . . . . 1 . 1 . . . . 1 . Processor 15 | . . . . . 2 1 . . . . 1 . . . . 2 . . 1 1 2 3 . 1 1 Hackware 7 | . . . . . . . . . . . . . . . . 1 . . . . 4 1 . 1 . Protection 30 | . 1 . . . 4 3 1 . . 2 . 3 2 1 1 3 . . 2 . 3 1 . 3 . Artifact . | . . . . . . . . . . . . . . . . . . . . . . . . . . Weapon 59 | 2 4 2 . . 4 3 1 . . . 2 1 . . . 3 1 . 1 1 11 12 . 10 1 Energy Gun 15 | . . . . . . . . . . . . . . . . . . . . . 4 8 . 3 . Energy Cannon 28 | . 2 1 . . 2 2 1 . . . 1 1 . . . 2 1 . . 1 5 4 . 5 . Ballistic Gun 4 | 2 2 . . . . . . . . . . . . . . . . . . . . . . . . Ballistic Cannon 3 | . . . . . . . . . . . . . . . . . . . . . . . . 2 1 Launcher 8 | . . . . . 2 1 . . . . 1 . . . . 1 . . 1 . 2 . . . . Special Weapon . | . . . . . . . . . . . . . . . . . . . . . . . . . . Impact Weapon . | . . . . . . . . . . . . . . . . . . . . . . . . . . Slashing Weapon 1 | . . 1 . . . . . . . . . . . . . . . . . . . . . . . Piercing Weapon . | . . . . . . . . . . . . . . . . . . . . . . . . . . Special Melee Weapon . | . . . . . . . . . . . . . . . . . . . . . . . . . . Unidentified Prototypes 29 | . 1 . . 1 2 . . . . 1 1 . 2 . . 2 . . 4 . 7 2 . 6 . Corrupted Parts 1 | . . . . . . . . . . . . . . . . 1 . . . . . . . . . System Corruption 5 | . . . . . . . . . . . . . . . . 5 . . . . . . . . . Parts Lost 137 | . . . 3 . 5 3 . . . 1 . 3 . . . 4 . 1 10 3 36 39 4 6 19 Power 25 | . . . . . 1 1 . . . . . . . . . . . . 1 1 8 9 . 1 3 Propulsion 31 | . . . 3 . 4 . . . . . . . . . . . . . 2 . 3 12 1 3 3 Utility 52 | . . . . . . 1 . . . 1 . 2 . . . 2 . 1 5 2 14 10 3 1 10 Weapon 29 | . . . . . . 1 . . . . . 1 . . . 2 . . 2 . 11 8 . 1 3 Highest Loss Streak 18 | . . . 1 . 2 1 . . . 1 . 2 . . . 3 . 1 10 2 10 18 2 6 9 To Critical Strikes 1 | . . . . . . . . . . . . . . . . . . . . . . . . 1 . Average Backups 12 | 2 9 14 14 15 14 14 14 15 15 15 13 12 13 12 12 12 13 16 17 9 14 3 4 5 13 Power . | . . 1 . . . 1 1 2 2 2 1 . . . . . . . . 1 1 . . 1 2 Propulsion 3 | 1 3 4 3 4 3 4 6 6 6 6 4 3 3 2 2 2 2 2 2 . 2 1 1 2 8 Utility 4 | . . 1 5 6 6 4 4 3 3 3 4 3 5 6 5 5 5 6 7 3 6 . . 1 . Weapon 4 | . 5 7 5 4 4 3 3 4 4 4 4 4 4 4 4 4 6 7 6 5 3 1 2 . 2 Tool/Special . | . . . . . . . . . . . . . . . . . . . . . . . . . . Unused Backups 68 | . 3 2 1 1 6 5 3 . . . 6 4 4 1 . 3 . . . . 9 2 4 4 10 Power 6 | . 1 . . . 1 . . . . . . . . . . 1 . . . . 1 . 1 1 . Propulsion 25 | . . 2 . . . 3 1 . . . 2 2 2 . . . . . . . . . 2 3 8 Utility 21 | . . . 1 1 2 1 2 . . . 3 1 . 1 . 2 . . . . 6 . . . 1 Weapon 16 | . 2 . . . 3 1 . . . . 1 1 2 . . . . . . . 2 2 1 . 1 Tool/Special . | . . . . . . . . . . . . . . . . . . . . . . . . . . Average Slot Usage (%) 84 | . 95 100 99 100 98 92 92 92 77 91 98 99 85 79 80 83 81 82 82 72 80 50 12 52 69 Engine 3 | . 12 . . . 4 7 7 7 7 7 12 7 4 . . . . . . 4 . . . . . Core 3 | . 1 14 11 11 4 . . . . . . 4 4 . . 2 11 11 10 2 . . . . . Reactor 3 | . . . . . . . . . . . . . 3 13 13 8 . . . . 7 6 . 7 8 Treads 6 | . 28 28 17 . . . . . . . . . 6 13 13 11 11 11 12 11 9 . . 1 1 Leg 12 | . . . 25 44 35 25 23 23 23 23 25 26 11 . . . . . . . . 9 . 4 16 Device 14 | . . 13 11 11 9 13 14 15 15 15 24 20 13 15 13 13 11 11 17 11 16 17 1 9 15 Storage 6 | . 15 14 11 11 9 7 7 7 7 7 6 6 6 6 6 5 5 5 5 5 4 . . 2 3 Processor 7 | . . . . . 7 7 7 7 7 7 5 6 6 6 . 8 11 11 11 11 14 4 . 2 4 Hackware 1 | . . . . . . . . . . . . . . . . 4 5 5 2 . 6 1 . 2 3 Protection 8 | . 8 . . . 9 13 15 15 15 14 7 11 13 10 18 12 11 11 6 9 3 . . 4 5 Energy Cannon 11 | . . 25 22 22 18 14 15 14 1 14 12 13 13 13 13 10 10 11 10 10 10 1 . 3 2 Peak Build Rating 198 | 6 13 17 19 24 29 46 48 48 48 53 65 78 105 105 106 122 118 119 132 114 142 106 47 188 198 Average Rating 78 | 4 10 16 18 19 26 41 47 48 41 48 62 71 89 101 105 114 117 118 120 109 123 60 27 103 147 On Entrance 60 | . 6 13 17 19 19 28 42 48 48 48 51 65 75 105 101 106 117 118 119 94 106 3 11 26 187 Avg Prop Armor Cover (%) 7 | . . . 9 . . . . . . . . . 4 . . . . . . . 10 3 10 3 5 Naked Turns 223 | . . . . . . . . . . . . . . . . . . . . . 47 32 . 58 86 Heaviest Build 163 | 13 36 34 34 34 48 64 66 62 62 62 81 85 106 106 113 113 117 117 131 102 111 63 6 163 143 Greatest Support 166 | 40 40 40 80 40 45 70 68 70 70 70 78 95 160 160 160 160 160 160 160 160 160 95 23 113 166 Greatest Overweight (x) 1 | . . . . . 1 1 . . . . 1 1 1 . . . . . . . 1 1 . 1 . Average Overweight (x) . | . . . . . . . . . . . . . . . . . . . . . . . . . . Largest Inventory Capacity 20 | 8 15 15 15 15 15 15 15 15 15 15 15 15 15 15 15 15 20 20 20 20 20 5 5 20 20 Average Capacity 15 | 6 13 15 15 15 15 15 15 15 15 15 15 15 15 15 15 15 15 20 20 20 19 5 5 14 17 Most Carried 20 | 4 14 15 15 15 15 15 15 15 15 15 15 15 15 15 15 15 18 20 20 13 20 5 5 20 20 Average Carried 14 | 2 9 14 14 14 14 14 14 15 15 14 14 14 14 14 14 14 15 18 19 10 17 3 4 6 15 Final Capacity 20 | 8 15 15 15 15 15 15 15 15 15 15 15 15 15 15 15 15 20 20 20 20 5 5 5 20 5 Final Carried 20 | 4 14 15 15 15 15 15 15 15 15 15 15 15 15 15 15 15 18 20 13 12 5 5 5 20 5 Class Distribution -------------------- 38% | Scavenger-Mutant 34% | Mutant 8% | Hacker-Tank 7% | Scavenger-Tank 5% | Commander-Mutant Dominant Class ---------------- Mutant | -10/Materials Mutant | -10/Mines Scavenger-Mutant | -9/Materials Scavenger-Mutant | -9/Mines Scavenger-Mutant | -8/Materials Mutant | -7/Factory Mutant | -7/Lower Caves Mutant | -7/Lower Caves Mutant | -7/Data Miner Mutant | -6/Proximity Caves Mutant | -6/Factory Commander-Mutant | -6/Extension Scavenger-Mutant | -6/Cetus Commander-Mutant | -6/Archives Scavenger-Mutant | -6/Hub_04(d) Scavenger-Mutant | -5/Factory Scavenger-Mutant | -5/Upper Caves Scavenger-Mutant | -5/Upper Caves Scavenger-Mutant | -5/Warlord Scavenger-Mutant | -4/Proximity Caves Hacker-Tank | -4/Factory Scavenger-Gunner | -3/Research Sprinter | -3/Armory Scavenger-Tank | -2/Research Scavenger-Tank | -1/Access Resources | -11 -10 -10 -9 -9 -8 -7 -7 -7 -7 -6 -6 -6 -6 -6 -6 -5 -5 -5 -5 -4 -4 -3 -3 -2 -1 ----------- Run | Yrd Mat Min Mat Min Mat Fac Low Low Dat Pro Fac Ext Cet Arc Hub Fac Upp Upp War Pro Fac Res Arm Res Acc Matter Collected 5369 | 154 413 112 90 20 335 228 49 90 . 161 50 278 83 20 54 280 50 10 95 246 781 693 . 717 360 Remotely . | . . . . . . . . . . . . . . . . . . . . . . . . . . Salvage Created 14658 | . 432 251 1220 21 1476 794 364 134 . 313 88 1150 242 162 200 820 . 713 225 535 3260 883 . 474 901 Parts 587 | . 29 17 56 . 57 44 12 3 . 8 3 39 9 10 9 44 . 16 12 14 132 26 . 20 27 Haulers Intercepted 11 | . 2 . 1 . 4 1 . . . 1 . . . . . . . . . . 1 . . . 1 Recyclers Shooed 7 | . . . 1 . 1 . . . . . . 1 . . . 1 . . . . 2 . . 1 . Parts Field Recycled . | . . . . . . . . . . . . . . . . . . . . . . . . . . Retrieved Matter . | . . . . . . . . . . . . . . . . . . . . . . . . . . Parts Self-Destructed 36 | . . . . . . . 2 2 . 7 . . . . . . . 13 . 12 . . . . . Prevented . | . . . . . . . . . . . . . . . . . . . . . . . . . . Parts Restored . | . . . . . . . . . . . . . . . . . . . . . . . . . . Kills | -11 -10 -10 -9 -9 -8 -7 -7 -7 -7 -6 -6 -6 -6 -6 -6 -5 -5 -5 -5 -4 -4 -3 -3 -2 -1 ------- Run | Yrd Mat Min Mat Min Mat Fac Low Low Dat Pro Fac Ext Cet Arc Hub Fac Upp Upp War Pro Fac Res Arm Res Acc Combat Hostiles Destroyed 258 | . 11 6 26 2 21 16 6 3 . 6 1 17 3 1 2 18 . 9 11 5 64 10 . 5 15 Melee 2 | . . . . . . . . . . . . . . . . . . . 1 . 1 . . . . Guns 26 | . 11 . . . . . . . . . . . . . . . . . . . 4 4 . . 7 Cannons 153 | . . 6 25 2 14 11 5 1 . 2 1 14 3 1 2 12 . 7 . 5 25 5 . 4 8 AOE 58 | . . . . . 4 4 . 2 . 4 . . . . . 5 . 1 10 . 28 . . . . Classes Destroyed 23 | . 4 3 3 . 3 1 2 . . . . 1 . . . 1 . . 1 1 2 . . 1 . Worker 6 | . . . . . 1 . . . . . . . . . . . . . . . 5 . . . . Builder 10 | . . 1 . . . . . . . . . . . . . 1 . . . . 7 . . . 1 Tunneler 1 | . . . . . 1 . . . . . . . . . . . . . . . . . . . . Hauler 11 | . 2 . 1 . 4 1 . . . 1 . . . . . . . . . . 1 . . . 1 Recycler 10 | . . . 1 . 4 . . . . . . 1 . . . . . . . . 2 1 . 1 . Mechanic 2 | . . . 1 . . . . . . . . . . . . . . . . . 1 . . . . Operator 9 | . 2 . 1 . . . . . . . . . . 3 1 . . . . . 1 1 . . . Drone 1 | . . . . . . . . . . . . . . . . . . . . 1 . . . . . Watcher 10 | . . . 1 . . 1 . . . . 1 1 1 . . 1 . . . . 2 1 . . 1 Swarmer 43 | . 6 . 4 . 4 4 . 1 . . . 1 . . . 5 . 2 5 . 5 . . 1 5 Saboteur 3 | . . . . . . . . . . . . . . . . . . . . . 3 . . . . Grunt 96 | . 5 3 18 . 12 . . 1 . 5 . 8 . . 1 6 . 3 3 . 22 7 . . 2 Brawler 3 | . . . . . . . . . . . . . . . . . . . . . 2 . . 1 . Duelist 4 | . . . . . . . . . . . . . . . . 3 . . . . 1 . . . . Protector 4 | . . . . . . . . . . . . . . . . . . . 2 . 2 . . . . Sentry 31 | . . 1 4 . 4 5 . 1 . 1 . 6 . 1 1 2 . 1 . . 4 . . . . Demolisher 1 | . . . . . . . . . . . . . . . . . . . . . . . . 1 . Specialist 1 | . . . . . . . . . . . . . . . . . . . . . 1 . . . . Hunter 28 | . . . . . 1 2 . . . . . . . . . . . 3 1 2 10 3 . . 6 Programmer 26 | . . . . . . 5 . . . . 1 . . . . 2 . . . 1 14 . . 2 1 Behemoth 3 | . . . . . . . . . . . . 2 . . . . . . . 1 . . . . . Cetus Guard 3 | . . . . . . . . . . . . . 3 . . . . . . . . . . . . Assembled 4 | . . 2 . 2 . . . . . . . . . . . . . . . . . . . . . Thug 4 | . . . . . . . 4 . . . . . . . . . . . . . . . . . . Savage 1 | . . . . . . . 1 . . . . . . . . . . . . . . . . . . Butcher 1 | . . . . . . . . . . . . . . . . . . . . . . . . . 1 Guerrilla 1 | . . . . . . . . . . . . . . . 1 . . . . . . . . . . Mutant 1 | . . . . . . . 1 . . . . . . . . . . . . . . . . . . Best Kill Streak 24 | . 5 2 6 1 6 4 3 2 . 5 1 6 2 1 1 8 . 5 11 3 24 5 . 3 8 Combat Bots Only 14 | . 4 2 5 1 4 4 3 2 . 5 1 6 2 1 1 7 . 5 11 3 14 5 . 2 8 Max Kills in Single Turn 7 | . 2 1 2 1 5 4 1 1 . 3 1 1 1 1 1 3 . 1 4 1 7 1 . 1 1 Gunslinging 1 | . 1 . . . . . . . . . . . . . . . . . . . . . . . . Exploded 5 | . . . . . 4 4 . 1 . 3 . . . . . 3 . 1 4 . 5 . . . . Melee 1 | . . . . . . . . . . . . . . . . . . . 1 . 1 . . . . Uniques/NPCs Destroyed . | . . . . . . . . . . . . . . . . . . . . . . . . . . Combat | -11 -10 -10 -9 -9 -8 -7 -7 -7 -7 -6 -6 -6 -6 -6 -6 -5 -5 -5 -5 -4 -4 -3 -3 -2 -1 -------- Run | Yrd Mat Min Mat Min Mat Fac Low Low Dat Pro Fac Ext Cet Arc Hub Fac Upp Upp War Pro Fac Res Arm Res Acc Hostile Shots Fired 2968 | . 59 16 87 3 91 163 29 28 . 18 8 289 19 9 27 141 . 74 208 96 469 528 82 123 401 Missed 930 | . 15 4 21 1 24 51 9 17 . 8 1 138 9 3 9 27 . 21 64 19 114 177 50 34 114 Hits 2038 | . 44 12 66 2 67 112 20 11 . 10 7 151 10 6 18 114 . 53 144 77 355 351 32 89 287 Melee 88 | . . . . . . . . . . . . . . . . 24 . . 25 . 27 5 . 4 3 Projectile 1950 | . 44 12 66 2 67 112 20 11 . 10 7 151 10 6 18 90 . 53 119 77 328 346 32 85 284 AOE 4 | . . . . . . . . . . . . . . . . . . . . . . 2 1 . 1 Critical Strikes 111 | . . . 1 . 3 1 3 . . . . 3 3 . . 16 . 1 8 2 25 23 . 4 18 Actively Blocked 37 | . . . . . . . . . . . . . . . . . . . . . 23 . . . 14 Part Disruptions 1 | . . . . . . . . . . . . . . . . . . . . . . . . . 1 Damage Taken 36103 | . 476 178 749 31 1001 854 386 90 . 127 106 1626 164 139 369 2602 . 916 3173 1343 7777 5224 634 1946 6192 Core 5946 | . 133 50 157 . 145 72 20 11 . 10 . 91 . 26 17 140 . 91 307 115 1101 896 363 594 1607 Absorbed by Shields 1116 | . . . . . . 280 . . . . . 111 113 . . . . . 56 . . . . . 556 Reduced by Siege Mode 1171 | . . . . . . . . . . . . . . . . 192 . 30 38 98 569 5 . . 239 Redirected to Shielding 24 | . 21 3 . . . . . . . . . . . . . . . . . . . . . . . Ignored by Resistances 3278 | . . . . . . 29 . . . . . . . . 29 66 . . 664 90 805 1595 . . . Regen/Repaired (Parts) 2183 | . . . . . . . . . . . . . . . . . . . 777 . 1406 . . . . Core Remaining (%) 52 | 100 . 26 . 60 73 . . . . 83 . . . . 84 . . . . 34 4 . 3 59 . Volleys Fired 859 | . 36 10 63 3 70 53 27 3 . 11 31 65 13 13 33 53 . 29 9 28 189 45 . 17 58 Largest 4 | . 2 2 2 2 2 2 2 2 . 2 2 2 2 2 2 2 . 2 2 2 3 3 . 3 4 Hottest 360 | . 46 136 136 136 143 140 125 125 . 125 145 175 155 155 155 180 . 180 180 188 308 225 . 360 337 Shots Fired 1533 | . 72 20 126 6 124 93 48 4 . 18 38 127 25 24 48 87 . 50 12 46 306 84 . 22 153 Gun 245 | . 72 . . . . . . . . . . . . . . . . . . . 55 47 . . 71 Cannon 1249 | . . 20 126 6 123 91 48 2 . 13 38 127 25 24 48 86 . 50 6 46 229 37 . 22 82 Launcher 39 | . . . . . 1 2 . 2 . 5 . . . . . 1 . . 6 . 22 . . . . Special . | . . . . . . . . . . . . . . . . . . . . . . . . . . Kinetic 126 | . 72 . . . . . . . . . . . . . . . . . . . . . . 3 51 Thermal 1356 | . . 20 126 6 123 91 48 2 . 13 38 127 25 24 48 86 . 50 6 46 272 84 . 19 102 Explosive 39 | . . . . . 1 2 . 2 . 5 . . . . . 1 . . 6 . 22 . . . . Electromagnetic 12 | . . . . . . . . . . . . . . . . . . . . . 12 . . . . Robot Hit Streak 30 | . 12 5 15 1 30 22 15 8 . 21 3 14 8 10 12 20 . 10 12 12 14 10 . 7 19 Robot Miss Streak 5 | . 2 2 2 2 2 2 1 . . . 2 4 2 2 5 5 . 2 2 3 5 2 . 4 4 Penetration Max . | . . . . . . . . . . . . . . . . . . . . . . . . . . Secondary Targets 6 | . 5 . . . . . . . . . . . . . . . . . . . . 1 . . . Max Gunslinging Chain 1 | . 1 . . . . . . . . . . . . . . . . . . . . 1 . . . Shots Hit Robots 952 | . 49 15 85 2 96 62 35 3 . 13 6 88 18 17 16 54 . 35 7 34 158 62 . 12 85 Core Hits 611 | . 18 9 33 2 33 24 11 4 . 19 2 33 8 8 7 43 . 15 42 14 215 26 . 6 39 Critical Kills 18 | . . . 1 . 3 . 1 . . . . 4 . . . 1 . 1 . . 7 . . . . Critical Parts Destroyed . | . . . . . . . . . . . . . . . . . . . . . . . . . . Critical Strikes 23 | . . . 1 . 3 . 1 . . . . 4 . . . 1 . 1 . . 9 3 . . . Burn 5 | . . . . . . . . . . . . . . . . . . . . . 2 3 . . . Meltdown 18 | . . . 1 . 3 . 1 . . . . 4 . . . 1 . 1 . . 7 . . . . Melee Attacks 8 | . . 8 . . . . . . . . . . . . . . . . . . . . . . . Impact . | . . . . . . . . . . . . . . . . . . . . . . . . . . Slashing 8 | . . 8 . . . . . . . . . . . . . . . . . . . . . . . Piercing . | . . . . . . . . . . . . . . . . . . . . . . . . . . Sneak Attacks 1 | . . 1 . . . . . . . . . . . . . . . . . . . . . . . Combat Hostiles . | . . . . . . . . . . . . . . . . . . . . . . . . . . Follow-up Attacks . | . . . . . . . . . . . . . . . . . . . . . . . . . . Damage Inflicted 40948 | . 710 330 1923 42 2556 1931 864 171 . 966 207 3262 748 653 766 2449 . 1325 3013 1178 11787 1843 . 570 3654 Guns 4007 | . 710 . . . . . . . . . . . . . . . . . . . 899 757 . . 1641 Cannons 24671 | . . 286 1923 42 2304 1700 864 51 . 274 207 3262 748 653 643 1814 . 1206 137 1178 3750 1086 . 567 1976 Explosions 12118 | . . . . . 247 231 . 120 . 692 . . . . 123 635 . 119 2843 . 7108 . . . . Melee 44 | . . 44 . . . . . . . . . . . . . . . . . . . . . . . Ramming 108 | . . . . . 5 . . . . . . . . . . . . . 33 . 30 . . 3 37 Kinetic 2243 | . 710 . . . . . . . . . . . . . . . . . . . . . . 36 1497 Thermal 27019 | . . 286 1923 42 2304 1700 864 51 . 274 207 3262 748 653 643 1886 . 1325 137 1178 5042 1843 . 531 2120 Explosive 11048 | . . . . . 247 231 . 120 . 692 . . . . . 563 . . 2843 . 6352 . . . . Electromagnetic 486 | . . . . . . . . . . . . . . . 123 . . . . . 363 . . . . Impact . | . . . . . . . . . . . . . . . . . . . . . . . . . . Slashing 44 | . . 44 . . . . . . . . . . . . . . . . . . . . . . . Piercing . | . . . . . . . . . . . . . . . . . . . . . . . . . . Highest Corruption 18 | . 1 1 . . 6 2 2 2 2 6 1 2 2 2 10 7 . . . 5 18 3 3 15 17 Average Corruption 4 | . 1 1 . . 4 1 2 2 2 2 1 1 2 1 4 2 . . . 4 7 3 2 14 3 Corruption Purged 23 | . . . . . . . . . . . . . . 2 6 7 . . . . 5 . 3 . . Corruption Blocked 6 | . . . . . . . . . . . . . . . . . . . . . 6 . . . . Effects 190 | . . 6 . . 12 5 11 5 2 7 . 11 10 1 22 7 . . . 5 16 4 2 54 10 Message Errors 41 | . . 1 . . 4 1 3 1 . 1 . 4 2 . 4 4 . . . 1 2 1 1 11 . Matter Fused 38 | . . 1 . . 1 1 1 2 1 2 . 1 2 . 4 . . . . 2 5 2 . 12 1 Heat Flow Errors 25 | . . 1 . . 2 1 2 1 . . . 1 1 . 4 1 . . . . . . . 9 2 Energy Discharges 24 | . . 2 . . 1 . 3 1 . 1 . 4 . . 2 . . . . 1 3 1 1 3 1 Parts Rejected 3 | . . . . . . . . . . . . . . . . . . . . . . . . 1 2 Parts Fused 3 | . . . . . . . . . 1 . . . . . . 1 . . . . . . . 1 . Data Loss (minor) 26 | . . 1 . . 1 . 1 . . 2 . 1 1 1 5 1 . . . 1 2 . . 8 1 Data Loss (major) 9 | . . . . . 2 1 1 . . . . . . . . . . . . . 2 . . 3 . Misfires 5 | . . . . . 1 . . . . 1 . . 1 . 1 . . . . . . . . 1 . Alerts 4 | . . . . . . 1 . . . . . . 1 . . . . . . . . . . 2 . Misdirections 6 | . . . . . . . . . . . . . . . . . . . . . 1 . . 2 3 Weapon Failures 6 | . . . . . . . . . . . . . 2 . 2 . . . . . 1 . . 1 . Overload Shots . | . . . . . . . . . . . . . . . . . . . . . . . . . . Overflow Damage 890 | . . . 36 . 97 28 17 . . . . . 19 19 17 65 . 57 18 29 350 . . 10 128 Projectiles 520 | . . . 36 . 78 28 17 . . . . . 19 19 17 57 . 57 . 29 25 . . 10 128 Explosions 370 | . . . . . 19 . . . . . . . . . . 8 . . 18 . 325 . . . . Melee . | . . . . . . . . . . . . . . . . . . . . . . . . . . Knockbacks 18 | . . . . . . . . . . . . . . . . . . . 1 . . . . . 17 Impact 1 | . . . . . . . . . . . . . . . . . . . 1 . . . . . . Kinetic 15 | . . . . . . . . . . . . . . . . . . . . . . . . . 15 Secondary 2 | . . . . . . . . . . . . . . . . . . . . . . . . . 2 Self-Inflicted Damage 1658 | . . . . . 26 . . . . . . . . . 100 91 . . 119 . 1305 . . . 17 Shots 37 | . . . . . 1 . . . . . . . . . 1 4 . . 3 . 28 . . . . Rammed 20 | . . . . . . . . . . . . . . . . . . . 4 . 6 . . 4 6 Targets Rammed 22 | . . . . . 1 . . . . . . . . . . . . . 5 . 6 . . 4 6 Kicked 1 | . . . . . 1 . . . . . . . . . . . . . . . . . . . . Crushed 1 | . . . . . . . . . . . . . . . . . . . 1 . . . . . . Highest Temperature 558 | . 34 264 264 60 207 151 103 253 . 6 . 329 153 220 252 260 . . . 306 316 282 . 372 558 Average Temperature 90 | . 10 109 88 29 65 22 22 138 . 6 . 116 52 91 77 138 . . . 59 95 99 . 109 117 Received Heat Transfer 6477 | . 171 72 300 . 522 93 198 36 . 45 . 519 . 9 54 463 . 81 688 45 891 1251 141 652 246 Effects 16 | . . . 1 . . . . . . . . 5 . 3 . . . . . . 1 . . . 6 Shutdowns 2 | . . . . . . . . . . . . 1 . . . . . . . . . . . . 1 Energy Bleed 3 | . . . 1 . . . . . . . . . . . . . . . . . 1 . . . 1 Interference 6 | . . . . . . . . . . . . 3 . 3 . . . . . . . . . . . Damage (minor) 1 | . . . . . . . . . . . . 1 . . . . . . . . . . . . . Damage (major) 4 | . . . . . . . . . . . . . . . . . . . . . . . . . 4 Siege Activations 24 | . . . . . . . . . . . . . 1 . . 2 . 3 1 2 12 1 . . 2 Total Turns 414 | . . . . . . . . . . . . . 3 . . 64 . 31 3 42 199 4 . . 68 Longest Duration 44 | . . . . . . . . . . . . . 3 . . 40 . 18 3 28 42 4 . . 44 Martial Activations . | . . . . . . . . . . . . . . . . . . . . . . . . . . Shielding Activations . | . . . . . . . . . . . . . . . . . . . . . . . . . . Robots Disrupted 3 | . . . . . . . . . . . . . . . . . . . . . 3 . . . . Combat Hostiles 3 | . . . . . . . . . . . . . . . . . . . . . 3 . . . . Robots Corrupted 1 | . . . . . . . . . . . . . . . 1 . . . . . . . . . . Combat Hostiles . | . . . . . . . . . . . . . . . . . . . . . . . . . . Parts Fried 2 | . . . . . . . . . . . . . . . 2 . . . . . . . . . . Impact Corruptions . | . . . . . . . . . . . . . . . . . . . . . . . . . . Robots Melted 21 | . . . 1 . 3 1 1 . . . . 4 . . . 1 . 1 . . 7 1 . 1 . Combat Hostiles 19 | . . . 1 . 3 1 1 . . . . 3 . . . 1 . 1 . . 6 1 . 1 . Parts Melted 98 | . . . 9 . 9 7 2 1 . . . 8 . 1 . 1 . 3 . 1 43 10 . 1 2 Heat Transferred 35367 | . . 518 3256 74 3552 2331 1295 74 . 407 222 3801 908 807 846 2329 . 1300 75 1150 6503 3033 . 444 2442 Parts Sabotaged 6 | . . . . . . . . . . . . . . . . 3 . . . . 3 . . . . Parts Stolen . | . . . . . . . . . . . . . . . . . . . . . . . . . . Parts Stripped . | . . . . . . . . . . . . . . . . . . . . . . . . . . Power Chain Reactions 3 | . . . . . . . . . . . . . . . . 1 . 1 . . 1 . . . . Alert | -11 -10 -10 -9 -9 -8 -7 -7 -7 -7 -6 -6 -6 -6 -6 -6 -5 -5 -5 -5 -4 -4 -3 -3 -2 -1 ------- Run | Yrd Mat Min Mat Min Mat Fac Low Low Dat Pro Fac Ext Cet Arc Hub Fac Upp Upp War Pro Fac Res Arm Res Acc Maximum Alert Level 5 | . . . 1 . 1 1 . . . . . 2 1 1 3 3 . . . . 5 3 2 2 1 Low Security (%) 46 | 100 100 100 54 100 92 95 . . . . 100 79 . 24 2 . . . . . 16 . . . 16 Level 1 22 | . . . 45 . 7 4 . . . . . 17 100 75 31 . . . . . 12 . 65 73 83 Level 2 12 | . . . . . . . . . . . . 3 . . 46 54 . . . . 3 61 34 26 . Level 3 16 | . . . . . . . . . . . . . . . 19 45 . . . . 57 38 . . . Level 4 1 | . . . . . . . . . . . . . . . . . . . . . 7 . . . . Level 5 . | . . . . . . . . . . . . . . . . . . . . . 2 . . . . High Security . | . . . . . . . . . . . . . . . . . . . . . . . . . . Max Security . | . . . . . . . . . . . . . . . . . . . . . . . . . . Peak Influence 1650 | . 160 117 394 151 220 213 . . . . 57 552 391 299 1081 830 . . . . 1650 870 610 456 309 Initial 865 | . . 52 . 151 . 76 . . . . 28 21 305 130 62 491 . . . . 300 865 241 336 140 Average 322 | . 34 44 195 47 140 91 . . . . 4 100 321 235 570 649 . . . . 669 644 340 344 232 Influence Increases 12076 | . 316 120 776 . 696 569 . 60 . 125 145 1050 296 239 1449 792 . 210 205 105 2999 354 519 476 575 Destroy 0b10 Robot/C 5600 | . 220 80 520 . 420 320 . 60 . 120 20 580 160 80 380 360 . 180 180 80 1240 200 . 100 300 Destroy 0b10 Robot/NC 415 | . 20 5 25 . 50 10 . . . 5 5 40 10 15 45 10 . 10 10 15 105 15 . 5 15 Destroy Leader 980 | . 44 20 124 . 98 114 . . . . 12 66 . . 98 62 . 20 . 10 216 22 . 30 44 Allied During Kill 826 | . . . . . . . . . . . . 246 118 95 367 . . . . . . . . . . Successful Hack 268 | . 13 . 12 . 27 36 . . . . 24 . . . 57 28 . . . . 54 . 9 8 . Select Force Hacks 90 | . . . 30 . 60 . . . . . . . . . . . . . . . . . . . . Disable Machine 1050 | . . . . . 15 45 . . . . 60 60 . 45 345 105 . . . . 375 . . . . Destroy Structure 1182 | . 4 . 5 . 26 29 . . . . 24 28 8 4 157 152 . . . . 634 12 . 18 81 Advance Influence 300 | . . . . . . . . . . . . . . . . . . . . . 300 . . . . Partial Spotted 45 | . . . . . . . . . . . . . . . . . . . . . . 15 15 15 . Lose Combat Pursuer 1320 | . 15 15 60 . . 15 . . . . . 30 . . . 75 . . 15 . 75 90 495 300 135 Influence Decreases 11813 | . 182 254 388 388 527 532 206 24 36 80 145 549 515 387 625 1018 567 376 177 177 1350 1542 340 882 546 Entered New Map 3480 | . . 82 . 237 . 93 77 . 36 . 17 24 241 197 117 512 289 40 44 72 . 784 220 304 94 Time Decay 6506 | . 182 172 358 151 477 409 129 24 . 80 128 448 214 170 428 446 278 326 33 105 720 368 80 518 262 Search Patrol Dispatched 100 | . . . . . . . . . . . . . . . . . . . . . 100 . . . . Lost Part 1320 | . . . 30 . 50 30 . . . . . 20 . . . 40 . 10 100 . 360 390 40 60 190 Lost Ally 257 | . . . . . . . . . . . . 57 60 20 80 20 . . . . 20 . . . . Purge Threat 150 | . . . . . . . . . . . . . . . . . . . . . 150 . . . . Squads Dispatched 68 | . 2 . 3 . 3 4 . . . . 2 2 . . 6 3 . . . . 21 9 2 1 10 Investigation 9 | . . . 1 . 2 . . . . . . 1 . . . . . . . . 1 1 . 1 2 Extermination 17 | . . . . . . 3 . . . . 2 . . . 1 2 . . . . 7 . 1 . 1 Reinforcement 27 | . 2 . 2 . 1 1 . . . . . 1 . . 4 . . . . . 6 7 1 . 2 Assault 8 | . . . . . . . . . . . . . . . 1 1 . . . . 6 . . . . Garrison 7 | . . . . . . . . . . . . . . . . . . . . . 1 1 . . 5 Intercept . | . . . . . . . . . . . . . . . . . . . . . . . . . . Searches Triggered 1 | . . . . . . . . . . . . . . . . . . . . . 1 . . . . Data Miner Redirects 4 | . . . . . . . . . . . . . . . . . . . . . 3 . . . 1 Construction Impeded 5 | . . . . . . . . . . . . 1 . . 1 . . . . . 2 . . . 1 Haulers Reinforced 4 | . . . . . . . . . . . . . . . 1 . . . . . . 3 . . . Active Scanning Responses . | . . . . . . . . . . . . . . . . . . . . . . . . . . Cargo Convoy Interrupts 1 | . . . . . . . . . . . . . . . . . . . . . 1 . . . . Stealth | -11 -10 -10 -9 -9 -8 -7 -7 -7 -7 -6 -6 -6 -6 -6 -6 -5 -5 -5 -5 -4 -4 -3 -3 -2 -1 --------- Run | Yrd Mat Min Mat Min Mat Fac Low Low Dat Pro Fac Ext Cet Arc Hub Fac Upp Upp War Pro Fac Res Arm Res Acc Distress Signals 53 | . 3 . 8 . 4 1 . . . . . . 2 . 2 . . . 3 2 4 12 . 10 2 Communications Jammed . | . . . . . . . . . . . . . . . . . . . . . . . . . . Distress Signals . | . . . . . . . . . . . . . . . . . . . . . . . . . . Times Spotted 592 | . 22 7 35 1 39 27 7 3 . 7 5 36 10 15 16 28 . 9 39 11 96 33 47 45 54 Peak Tracking Total 21 | . 6 2 5 1 5 4 3 3 . 5 2 6 5 3 4 8 . 5 21 5 12 10 20 17 19 Tactical Retreats 41 | . 1 1 2 . . 1 1 . . . . 2 . . . 5 . . 1 . 4 3 6 11 3 Traps | -11 -10 -10 -9 -9 -8 -7 -7 -7 -7 -6 -6 -6 -6 -6 -6 -5 -5 -5 -5 -4 -4 -3 -3 -2 -1 ------- Run | Yrd Mat Min Mat Min Mat Fac Low Low Dat Pro Fac Ext Cet Arc Hub Fac Upp Upp War Pro Fac Res Arm Res Acc Traps Triggered 18 | . 1 . . . 2 1 . . . . 1 2 . . 2 2 . . . . 2 2 1 . 2 Indirectly . | . . . . . . . . . . . . . . . . . . . . . . . . . . Trap Hack Attempts . | . . . . . . . . . . . . . . . . . . . . . . . . . . Triggered . | . . . . . . . . . . . . . . . . . . . . . . . . . . Disarmed . | . . . . . . . . . . . . . . . . . . . . . . . . . . Reprogrammed . | . . . . . . . . . . . . . . . . . . . . . . . . . . Reused . | . . . . . . . . . . . . . . . . . . . . . . . . . . Traps Extracted . | . . . . . . . . . . . . . . . . . . . . . . . . . . Installed . | . . . . . . . . . . . . . . . . . . . . . . . . . . Triggered . | . . . . . . . . . . . . . . . . . . . . . . . . . . Machines | -11 -10 -10 -9 -9 -8 -7 -7 -7 -7 -6 -6 -6 -6 -6 -6 -5 -5 -5 -5 -4 -4 -3 -3 -2 -1 ---------- Run | Yrd Mat Min Mat Min Mat Fac Low Low Dat Pro Fac Ext Cet Arc Hub Fac Upp Upp War Pro Fac Res Arm Res Acc Machines Disabled 74 | . . . 1 . 1 3 . . . . 4 6 1 3 23 7 . . . . 25 . . . . Max in Single Turn 17 | . . . 1 . 1 1 . . . . 1 1 . . 17 3 . . . . 5 . . . . Garrison Access 4 | . . . . . . . . . . . . . . . 1 . . . . . 1 . . 2 . Network Hub 1 | . . . . . . . . . . . . . . . 1 . . . . . . . . . . Machines Repaired . | . . . . . . . . . . . . . . . . . . . . . . . . . . Machines Dismantled . | . . . . . . . . . . . . . . . . . . . . . . . . . . Machines Sabotaged . | . . . . . . . . . . . . . . . . . . . . . . . . . . Overloaded Fab Kills . | . . . . . . . . . . . . . . . . . . . . . . . . . . Hacking | -11 -10 -10 -9 -9 -8 -7 -7 -7 -7 -6 -6 -6 -6 -6 -6 -5 -5 -5 -5 -4 -4 -3 -3 -2 -1 --------- Run | Yrd Mat Min Mat Min Mat Fac Low Low Dat Pro Fac Ext Cet Arc Hub Fac Upp Upp War Pro Fac Res Arm Res Acc Machines Accessed 82 | . 5 1 6 1 7 7 1 . 4 . 5 2 1 . 9 6 1 . 6 . 12 1 6 1 . Terminals 47 | . 4 1 3 . 4 5 1 . . . 2 1 1 . 8 4 . . . . 5 1 6 1 . Fabricators 3 | . . . . . . . . . . . 2 . . . . . . . . . 1 . . . . Repair Stations 2 | . . . . . . . . . . . . . . . . . . . . . 2 . . . . Recycling Units 11 | . 1 . 2 . 2 1 . . . . 1 1 . . . 1 . . . . 2 . . . . Scanalyzers 4 | . . . 1 . 1 1 . . . . . . . . . . . . . . 1 . . . . Garrison Access 3 | . . . . . . . . . . . . . . . 1 1 . . . . 1 . . . . Total Hacks 216 | . 15 1 19 1 14 17 1 . 28 . 8 2 1 . 16 22 1 . 12 . 32 2 18 6 . Successful 115 | . 5 . 11 1 10 6 1 . 28 . 2 . . . 9 8 1 . 12 . 19 . 1 1 . Failed 97 | . 9 1 7 . 3 11 . . . . 6 2 1 . 7 14 . . . . 12 2 17 5 . Catastrophic 30 | . . 1 . . 1 6 . . . . 3 . 1 . 2 4 . . . . 1 2 6 3 . Database Lockouts 4 | . 1 . 1 . 1 . . . . . . . . . . . . . . . 1 . . . . Manual 116 | . 14 . 14 . 13 10 . . . . 3 1 1 . 12 13 . . 1 . 14 2 16 2 . Terminals 125 | . 13 1 11 . 10 10 1 . . . 3 1 1 . 15 17 . . . . 16 2 18 6 . Fabricators 5 | . . . . . . . . . . . 3 . . . . . . . . . 2 . . . . Repair Stations 7 | . . . . . . . . . . . . . . . . . . . . . 7 . . . . Recycling Units 19 | . 2 . 7 . 2 2 . . . . 2 1 . . . 1 . . . . 2 . . . . Scanalyzers 12 | . . . 1 . 2 5 . . . . . . . . . . . . . . 4 . . . . Garrison Access 6 | . . . . . . . . . . . . . . . 1 4 . . . . 1 . . . . Terminal Hacks 64 | . 1 . 3 1 3 . 1 . 28 . . . . . 4 4 1 . 12 . 4 . 1 1 . Record 26 | . . . . . . . 1 . 11 . . . . . . 3 . . 11 . . . . . . Part Schematic 10 | . . . . . . . . . 8 . . . . . . 1 . . . . 1 . . . . Robot Schematic 6 | . . . . . . . . . 6 . . . . . . . . . . . . . . . . Robot Analysis 5 | . 1 . 2 . 2 . . . . . . . . . . . . . . . . . . . . Prototype ID Bank 3 | . . . . . . . . . 3 . . . . . . . . . . . . . . . . Open Door 3 | . . . . 1 . . . . . . . . . . . . 1 . 1 . . . . . . Level Access Points 4 | . . . . . . . . . . . . . . . 1 . . . . . 1 . 1 1 . Branch Access Points 2 | . . . 1 . 1 . . . . . . . . . . . . . . . . . . . . Alert Level 1 | . . . . . . . . . . . . . . . 1 . . . . . . . . . . Unreport Threat 1 | . . . . . . . . . . . . . . . . . . . . . 1 . . . . Recall Reinforcements 1 | . . . . . . . . . . . . . . . . . . . . . 1 . . . . Zone Layout 2 | . . . . . . . . . . . . . . . 2 . . . . . . . . . . Fabricator Hacks 3 | . . . . . . . . . . . 1 . . . . . . . . . 2 . . . . Load Schematic 2 | . . . . . . . . . . . 1 . . . . . . . . . 1 . . . . Build 1 | . . . . . . . . . . . . . . . . . . . . . 1 . . . . Repair Station Hacks 5 | . . . . . . . . . . . . . . . . . . . . . 5 . . . . Scan Component 3 | . . . . . . . . . . . . . . . . . . . . . 3 . . . . Repair 2 | . . . . . . . . . . . . . . . . . . . . . 2 . . . . Recycling Unit Hacks 6 | . 1 . 2 . . . . . . . . . . . . 1 . . . . 2 . . . . Retrieve Components 6 | . 1 . 2 . . . . . . . . . . . . 1 . . . . 2 . . . . Scanalyzer 7 | . . . . . 1 3 . . . . . . . . . . . . . . 3 . . . . Insert Component 1 | . . . . . . . . . . . . . . . . . . . . . 1 . . . . Analyze 1 | . . . . . . . . . . . . . . . . . . . . . 1 . . . . Retrieve Study 5 | . . . . . 1 3 . . . . . . . . . . . . . . 1 . . . . Garrison Access Hacks 2 | . . . . . . . . . . . . . . . 1 . . . . . 1 . . . . Seal Access 2 | . . . . . . . . . . . . . . . 1 . . . . . 1 . . . . Unauthorized Hacks 25 | . 3 . 3 . 6 3 . . . . 1 . . . 4 3 . . . . 2 . . . . Terminals 22 | . 3 . 2 . 4 3 . . . . 1 . . . 4 3 . . . . 2 . . . . Botnet 22 | . 3 . 2 . 4 3 . . . . 1 . . . 4 3 . . . . 2 . . . . Fabricators . | . . . . . . . . . . . . . . . . . . . . . . . . . . Repair Stations . | . . . . . . . . . . . . . . . . . . . . . . . . . . Recycling Units 3 | . . . 1 . 2 . . . . . . . . . . . . . . . . . . . . Tunnel 3 | . . . 1 . 2 . . . . . . . . . . . . . . . . . . . . Scanalyzers . | . . . . . . . . . . . . . . . . . . . . . . . . . . Garrison Access . | . . . . . . . . . . . . . . . . . . . . . . . . . . Data Cores Recovered 1 | . . . . . . . . . . . . . . . 1 . . . . . . . . . . Used . | . . . . . . . . . . . . . . . . . . . . . . . . . . Hacking Detections 57 | . 5 1 3 . 4 7 . . . . 5 2 1 . 7 6 . . . . 8 1 6 1 . Full Trace Events 2 | . . . . . . . . . . . . . . . . . . . . . 1 . . 1 . Feedback Events . | . . . . . . . . . . . . . . . . . . . . . . . . . . Feedback Blocked . | . . . . . . . . . . . . . . . . . . . . . . . . . . Robot Schematics Acquired 6 | . . . . . . . . . 6 . . . . . . . . . . . . . . . . Robots Built . | . . . . . . . . . . . . . . . . . . . . . . . . . . Authchips . | . . . . . . . . . . . . . . . . . . . . . . . . . . Time . | . . . . . . . . . . . . . . . . . . . . . . . . . . Total Robot Build Rating . | . . . . . . . . . . . . . . . . . . . . . . . . . . Part Schematics Acquired 11 | . . . . . . . . . 8 . . . . . . 1 . . . . 2 . . . . Parts Built 2 | . . . . . . . . . . . . . . . . . . . . . 2 . . . . Authchips . | . . . . . . . . . . . . . . . . . . . . . . . . . . Time 95 | . . . . . . . . . . . . . . . . . . . . . 95 . . . . Total Part Build Rating 10 | . . . . . . . . . . . . . . . . . . . . . 10 . . . . Part Studies Acquired 5 | . . . . . 1 3 . . . . . . . . . . . . . . 1 . . . . Parts Repaired 2 | . . . . . . . . . . . . . . . . . . . . . 2 . . . . Time 244 | . . . . . . . . . . . . . . . . . . . . . 244 . . . . Parts Recycled . | . . . . . . . . . . . . . . . . . . . . . . . . . . Recycled Matter . | . . . . . . . . . . . . . . . . . . . . . . . . . . Retrieved Matter . | . . . . . . . . . . . . . . . . . . . . . . . . . . Retrieved Components 23 | . 5 . 4 . . . . . . . . . . . . 3 . . . . 11 . . . . Parts Scanalyzed 1 | . . . . . . . . . . . . . . . . . . . . . 1 . . . . Part Schematics Acquired 1 | . . . . . . . . . . . . . . . . . . . . . 1 . . . . Parts Damaged 1 | . . . . . . . . . . . . . . . . . . . . . 1 . . . . Bothacking | -11 -10 -10 -9 -9 -8 -7 -7 -7 -7 -6 -6 -6 -6 -6 -6 -5 -5 -5 -5 -4 -4 -3 -3 -2 -1 ------------ Run | Yrd Mat Min Mat Min Mat Fac Low Low Dat Pro Fac Ext Cet Arc Hub Fac Upp Upp War Pro Fac Res Arm Res Acc Used RIF Installer . | . . . . . . . . . . . . . . . . . . . . . . . . . . Robots Hacked . | . . . . . . . . . . . . . . . . . . . . . . . . . . Non-combat . | . . . . . . . . . . . . . . . . . . . . . . . . . . Combat . | . . . . . . . . . . . . . . . . . . . . . . . . . . Robot Hacks Applied . | . . . . . . . . . . . . . . . . . . . . . . . . . . Relay Couplers Released 3 | . . . . . . . . . . . . . . . . . . . . . . . . 3 . Machine Destruction 3 | . . . . . . . . . . . . . . . . . . . . . . . . 3 . Fabnet Peak Effective % . | . . . . . . . . . . . . . . . . . . . . . . . . . . Robots Rewired 18 | . . . . . . . . . . . . 17 . . . . . . . . 1 . . . . Allies Hacked . | . . . . . . . . . . . . . . . . . . . . . . . . . . Hacks Repelled . | . . . . . . . . . . . . . . . . . . . . . . . . . . Allies | -11 -10 -10 -9 -9 -8 -7 -7 -7 -7 -6 -6 -6 -6 -6 -6 -5 -5 -5 -5 -4 -4 -3 -3 -2 -1 -------- Run | Yrd Mat Min Mat Min Mat Fac Low Low Dat Pro Fac Ext Cet Arc Hub Fac Upp Upp War Pro Fac Res Arm Res Acc Total Allies 30 | . . . . . . . . . . . . 24 5 . . . . . . . 1 . . . . Largest Group 12 | . . . . . . . . . . . . 12 9 8 7 1 . . . . 1 . . . . Highest-Rated Group 719 | . . . . . . . . . . . . 442 719 583 541 80 . . . . 30 . . . . Highest-Rated Ally 159 | . . . . . . . . . . . . 159 136 96 96 80 . . . . 30 . . . . Total Orders 2 | . . . . . . . . . . . . 2 . . . . . . . . . . . . . STAY 1 | . . . . . . . . . . . . 1 . . . . . . . . . . . . . FOLLOW 1 | . . . . . . . . . . . . 1 . . . . . . . . . . . . . Ally Attacks 277 | . . . . . . . . . . . . 108 46 25 96 1 . . . . 1 . . . . Total Damage 7062 | . . . . . . . . . . . . 2334 858 788 3036 . . . . . 46 . . . . Kills 55 | . . . . . . . . . . . . 21 6 3 25 . . . . . . . . . . Allies Corrupted 3 | . . . . . . . . . . . . . . . 3 . . . . . . . . . . Allies Melted 1 | . . . . . . . . . . . . . . . . . . . . . . . . 1 . Intel | -11 -10 -10 -9 -9 -8 -7 -7 -7 -7 -6 -6 -6 -6 -6 -6 -5 -5 -5 -5 -4 -4 -3 -3 -2 -1 ------- Run | Yrd Mat Min Mat Min Mat Fac Low Low Dat Pro Fac Ext Cet Arc Hub Fac Upp Upp War Pro Fac Res Arm Res Acc Active Infowar (turns) 7454 | . . . . . . . . . . . 802 237 . . . 1118 602 732 584 . 2948 320 . . 111 Optics 3036 | . . . . . . . . . . . . . . . . 1118 602 732 584 . . . . . . Sensors 2603 | . . . . . . . . . . . 802 237 . . . 31 . . . . 1290 132 . . 111 Terrain 188 | . . . . . . . . . . . . . . . . . . . . . . 188 . . . Decoding 2948 | . . . . . . . . . . . . . . . . . . . . . 2948 . . . . Robot Analysis Total 5 | . 1 . 2 . 2 . . . . . . . . . . . . . . . . . . . . Derelict Logs Recovered 11 | . . 1 . 1 . . 2 1 . 1 . . . . . . 2 2 . 1 . . . . . Drone Launches . | . . . . . . . . . . . . . . . . . . . . . . . . . . Drone Recoveries . | . . . . . . . . . . . . . . . . . . . . . . . . . . Decoded 0b10 Intel 182 | . . . . . . . . . . . . . . . . . . . . . 182 . . . . Items 182 | . . . . . . . . . . . . . . . . . . . . . 182 . . . . Exploration | -11 -10 -10 -9 -9 -8 -7 -7 -7 -7 -6 -6 -6 -6 -6 -6 -5 -5 -5 -5 -4 -4 -3 -3 -2 -1 ------------- Run | Yrd Mat Min Mat Min Mat Fac Low Low Dat Pro Fac Ext Cet Arc Hub Fac Upp Upp War Pro Fac Res Arm Res Acc Turns Passed 23513 | 77 718 505 919 512 1494 1666 1130 562 135 322 1081 1761 457 353 1050 1118 602 732 1105 805 3380 854 179 1434 562 Spaces Moved 13438 | 43 361 253 419 317 721 945 780 407 93 198 679 968 193 182 579 541 369 387 621 324 1312 583 519 1274 370 Core 504 | 3 . . . . . . . . . . . . . . . . . . . . 88 136 . 118 159 Treads 5610 | 40 361 253 206 . . . . . . . . . 167 182 579 541 369 387 621 324 1224 96 . 217 43 Legs 5989 | . . . 213 317 721 945 780 407 93 198 679 968 26 . . . . . . . . 281 . 193 168 Wheels . | . . . . . . . . . . . . . . . . . . . . . . . . . . Hover 211 | . . . . . . . . . . . . . . . . . . . . . . . . 211 . Flight 1124 | . . . . . . . . . . . . . . . . . . . . . . 70 519 535 . Fastest Speed 30 | 50 160 160 120 120 120 122 130 130 136 136 125 116 120 160 160 160 160 160 160 160 50 30 30 31 50 Average Speed 136 | 152 160 160 139 120 152 146 130 130 136 136 132 124 195 160 160 160 160 160 160 160 171 101 31 95 90 Slowest Speed 240 | 160 160 160 160 120 190 190 130 136 136 136 219 190 240 160 160 160 160 160 163 160 240 190 45 225 145 Overloaded Moves . | . . . . . . . . . . . . . . . . . . . . . . . . . . Propulsion Burnouts . | . . . . . . . . . . . . . . . . . . . . . . . . . . Robots Hopped 9 | . . . . . . . . . . . . . . . . . . . . . . . 6 3 . Potential Cave-ins . | . . . . . . . . . . . . . . . . . . . . . . . . . . Cave-ins Triggered . | . . . . . . . . . . . . . . . . . . . . . . . . . . Exploration Rate (%) 49 | 3 72 60 48 62 62 22 72 61 68 34 17 83 68 95 50 18 54 63 82 43 39 12 60 37 14 Regions Visited 25 Branch Regions 15 Pre-discovered Areas 7 | . . . 1 . 2 . 1 . 1 . . . . . . . . 2 . . . . . . . Known Exits Taken 16 | . . . 1 . 1 1 . . . . 1 1 1 1 1 1 1 1 1 1 1 . 1 1 . Unknown Exits Taken 9 | 1 1 1 . 1 . . 1 1 1 1 . . . . . . . . . . . 1 . . . Scrap Searched 19 | . . . . 2 . . 7 3 . 1 . . . . . . 2 3 . 1 . . . . . Spaces Dug 129 | . . . . . 3 4 2 . . . 22 . . . 17 10 . . . 1 61 . . 1 8 Terrain Destroyed 978 | . . . . 1 25 22 6 19 . 37 23 18 3 2 184 73 . 27 107 12 374 6 . 9 30 Melee . | . . . . . . . . . . . . . . . . . . . . . . . . . . Projectile 285 | . . . . 1 17 5 6 . . . 23 18 3 2 21 24 . 14 . 12 94 6 . 9 30 AOE 693 | . . . . . 8 17 . 19 . 37 . . . . 163 49 . 13 107 . 280 . . . . Terrain Rammed . | . . . . . . . . . . . . . . . . . . . . . . . . . . Walls Destroyed . | . . . . . . . . . . . . . . . . . . . . . . . . . . Machines Disabled . | . . . . . . . . . . . . . . . . . . . . . . . . . . Actions | -11 -10 -10 -9 -9 -8 -7 -7 -7 -7 -6 -6 -6 -6 -6 -6 -5 -5 -5 -5 -4 -4 -3 -3 -2 -1 --------- Run | Yrd Mat Min Mat Min Mat Fac Low Low Dat Pro Fac Ext Cet Arc Hub Fac Upp Upp War Pro Fac Res Arm Res Acc Total 17175 | 52 442 316 631 443 1001 1144 853 433 101 232 832 1401 252 221 655 696 381 446 707 560 2154 748 530 1463 481 Wait 1757 | . 17 28 117 118 124 98 26 20 5 13 75 139 17 18 37 59 . 27 31 199 491 31 1 52 14 Move 13397 | 42 360 252 418 316 720 944 779 406 92 197 678 967 192 181 578 540 368 386 620 323 1311 582 507 1268 370 Hop 7 | . . . . . . . . . . . . . . . . . . . . . . . 5 2 . Pick Up 221 | 4 14 4 13 1 23 11 6 . . 1 13 13 8 3 3 9 3 3 4 3 35 13 5 25 4 Fast Attach 198 | 6 3 . 2 2 5 3 3 . 2 4 4 5 5 1 . 15 4 . 10 2 26 45 6 37 8 Attach 124 | . 2 1 6 . 7 6 2 . . . 3 3 1 1 2 6 . 1 8 4 29 13 . 16 13 Detach 13 | . . . . . 1 . . . . . . . . . . . . . . . 2 1 . 7 2 Swap 114 | . 3 8 1 . 21 12 1 3 . 2 5 14 . . . 4 1 . 5 . 17 7 . 8 2 Drop 258 | . 7 5 11 3 29 17 9 1 2 4 18 24 16 4 2 10 5 . 15 . 28 11 6 27 4 Fire 859 | . 36 10 63 3 70 53 27 3 . 11 31 65 13 13 33 53 . 29 9 28 189 45 . 17 58 Melee 8 | . . 8 . . . . . . . . . . . . . . . . . . . . . . . Ram 8 | . . . . . . . . . . . . . . . . . . . . . 2 . . . 6 Kick 1 | . . . . . 1 . . . . . . . . . . . . . . . . . . . . Crush 13 | . . . . . . . . . . . . . . . . . . . 5 . 4 . . 4 . Escape Stasis 10 | . . . . . . . . . . . 5 5 . . . . . . . . . . . . . Rewire 187 | . . . . . . . . . . . . 166 . . . . . . . 1 20 . . . . Trap . | . . . . . . . . . . . . . . . . . . . . . . . . . . Miscellaneous . | . . . . . . . . . . . . . . . . . . . . . . . . . . Route ------- -11/Scrapyard -10/Materials (discovered 5 exits: *Mat x3 / *Min x2) -10/Mines (discovered 3 exits: *Mat x2 / [*Sub]) -9/Materials -9/Mines -8/Materials -7/Factory -7/Lower Caves -7/Lower Caves -7/Data Miner -6/Proximity Caves -6/Factory (discovered 2 exits: Fac / *Ext) -6/Extension (discovered 2 exits: *Fac / *Cet) -6/Cetus (discovered 2 exits: *Fac / *Arc) -6/Archives (discovered 3 exits: *Fac / *Hub x2) -6/Hub_04(d) (discovered 4 exits: *Fac x4) -5/Factory -5/Upper Caves -5/Upper Caves (discovered 2 exits: *Fac / *War) -5/Warlord -4/Proximity Caves -4/Factory (discovered 4 exits: *Res x4) -3/Research -3/Armory (discovered 2 exits: *Res x2) -2/Research (discovered 3 exits: *Acc x3) -1/Access History --------- Turn | Location | Event 26 | -11/Scrapyard | Discovered new exit (range 15) 78 | -11/Scrapyard | Entered Materials 174 | -10/Materials | Discovered new exit (range 16) 309 | -10/Materials | Build established: Mutant 311 | -10/Materials | Discovered new exit (range 15) 434 | -10/Materials | Central database locked down 515 | -10/Materials | Discovered new exit (range 3) 606 | -10/Materials | Discovered new exit (range 6) 678 | -10/Materials | Derelicts attacked the area 765 | -10/Materials | Discovered new exit (range 13) 796 | -10/Materials | Core integrity fell below 50% 796 | -10/Materials | Entered Mines 819 | -10/Mines | Met a Derelict bent on vengeance 909 | -10/Mines | Discovered new exit (range 12) 953 | -10/Mines | Excavation squad dispatched 953 | -10/Mines | A large section of the Mines collapsed 1036 | -10/Mines | Joined a pair of Derelicts in attacking an 0b10 outpost 1074 | -10/Mines | Discovered new exit (range 8) 1095 | -10/Mines | Learned 4 Materials zone layouts 1149 | -10/Mines | Discovered new exit (range 9) 1301 | -10/Mines | Entered Materials 1301 | -9/Materials | Evolved 2 slots: Propulsion x2 1603 | -9/Materials | Build established: Scavenger-Mutant 1995 | -9/Materials | Central database locked down 2105 | -9/Materials | Identified exit to Mines 2220 | -9/Materials | Entered Mines 2232 | -9/Mines | Found the Drone Emporium 2241 | -9/Mines | Found Prototype Device 2241 | -9/Mines | Identified Sensor Drone Bay 2332 | -9/Mines | Deemed a non-threat by the Exiles lab entrance 2375 | -9/Mines | Assembled infested the area 2385 | -9/Mines | Learned 2 Materials zone layouts 2728 | -9/Mines | Met a Derelict testing a Signal Generator 2729 | -9/Mines | Discovered new exit (range 5) 2732 | -9/Mines | Entered Materials 2732 | -8/Materials | Evolved 2 slots: Utility x2 2733 | -8/Materials | Identified exit to Factory 3092 | -8/Materials | Central database locked down 4064 | -8/Materials | Build established: Mutant 4226 | -8/Materials | Entered Factory 4226 | -7/Factory | Evolved 2 slots: Utility x2 5499 | -7/Factory | Discovered new exit (range 13) 5540 | -7/Factory | Identified exit to Lower Caves 5892 | -7/Factory | Entered Lower Caves 6585 | -7/Lower Caves | Attacked by a faux Warlord 6724 | -7/Lower Caves | Learned 4 Factory zone layouts 6729 | -7/Lower Caves | Discovered new exit (range 6) 6772 | -7/Lower Caves | Learned location of Zion (-6) 7022 | -7/Lower Caves | Entered another Lower Caves area 7161 | -7/Lower Caves | Encountered a Warlord checkpoint 7538 | -7/Lower Caves | Attracted the attention of an 0b10 checkpoint 7540 | -7/Lower Caves | Discovered new exit (range 9) 7584 | -7/Lower Caves | Entered Data Miner 7585 | -7/Data Miner | Discovered new exit (range 6) 7611 | -7/Data Miner | Met Data Miner 7636 | -7/Data Miner | Learned location of Section 7 (-2) 7636 | -7/Data Miner | Acquired the access code to Warlord's prototype stash 7669 | -7/Data Miner | Received God Mode back door access code from Data Miner 7719 | -7/Data Miner | Entered Proximity Caves 7745 | -6/Proximity Caves | Learned Factory terminal intel 7830 | -6/Proximity Caves | Attracted the attention of an 0b10 checkpoint 7910 | -6/Proximity Caves | Discovered new exit (range 14) 7980 | -6/Proximity Caves | Found Imp. Powered Armor 8021 | -6/Proximity Caves | Spotted B-75 Beast 8041 | -6/Proximity Caves | Entered Factory 8041 | -6/Factory | Evolved 2 slots: Power x1, Utility x1 8042 | -6/Factory | Identified exit to Extension 8043 | -6/Factory | Identified exit to Factory 8044 | -6/Factory | Loaded intel: 28 terminal locations 8159 | -6/Factory | Found Prototype Launcher 8159 | -6/Factory | Identified Scatter Rocket Array 8168 | -6/Factory | Found Scatter Rocket Array 9122 | -6/Factory | Entered Extension 9346 | -6/Extension | Rescued a captive Derelict 9597 | -6/Extension | Rescued a captive Derelict 9694 | -6/Extension | Build established: Commander-Mutant 10035 | -6/Extension | Spotted B-75 Beast 10049 | -6/Extension | Destroyed B-75 Beast 10071 | -6/Extension | Spotted B-75 Beast 10110 | -6/Extension | Destroyed B-75 Beast 10127 | -6/Extension | Lost 10 allies 10248 | -6/Extension | Rescued a captive Derelict 10367 | -6/Extension | Rescued a captive Derelict 10442 | -6/Extension | Build established: Scavenger-Mutant 10469 | -6/Extension | Rescued a captive Derelict 10479 | -6/Extension | Rescued A7 10605 | -6/Extension | Rescued a captive Derelict 10845 | -6/Extension | Discovered exit to Factory (range 16) 10846 | -6/Extension | Discovered new exit (range 15) 10864 | -6/Extension | Identified exit to Cetus 10883 | -6/Extension | Entered Cetus 10883 | -6/Cetus | Accompanied by 7 allies (A7) 10888 | -6/Cetus | Acquired a Cetus Manufacturing Module code from A7 10904 | -6/Cetus | Spotted Cetus Guard 10904 | -6/Cetus | Spotted Cetus Guard 10907 | -6/Cetus | Spotted Cetus Guard 10908 | -6/Cetus | Build established: Commander-Mutant 10919 | -6/Cetus | Destroyed Cetus Guard 10920 | -6/Cetus | Allies destroyed Cetus Guard 10922 | -6/Cetus | Allies destroyed Cetus Guard 10922 | -6/Cetus | Spotted Cetus Guard 10931 | -6/Cetus | Destroyed Cetus Guard 10958 | -6/Cetus | Lost 3 allies 11089 | -6/Cetus | Started Cetus Manufacturing Module 11114 | -6/Cetus | Manufactured an Enhanced Grunt 11117 | -6/Cetus | Discovered new exit (range 16) 11139 | -6/Cetus | Manufactured an Enhanced Grunt 11158 | -6/Cetus | Spotted Cetus Guard 11158 | -6/Cetus | Spotted Cetus Guard 11161 | -6/Cetus | Allies destroyed Cetus Guard 11162 | -6/Cetus | Spotted Cetus Guard 11163 | -6/Cetus | Spotted Cetus Guard 11164 | -6/Cetus | Manufactured an Enhanced Grunt 11167 | -6/Cetus | Destroyed Cetus Guard 11167 | -6/Cetus | Allies destroyed Cetus Guard 11169 | -6/Cetus | Allies destroyed Cetus Guard 11189 | -6/Cetus | Manufactured an Enhanced Grunt 11196 | -6/Cetus | Discovered exit to Factory (range 16) 11210 | -6/Cetus | Met Revision 17 11214 | -6/Cetus | Manufactured an Enhanced Grunt 11332 | -6/Cetus | Identified exit to Archives 11340 | -6/Cetus | Entered Archives 11340 | -6/Archives | Accompanied by 9 allies (A7) 11409 | -6/Archives | Unable to access archive contents 11441 | -6/Archives | Discovered new exit (range 14) 11465 | -6/Archives | Identified exit to Hub_04(d) 11496 | -6/Archives | Discovered exit to Hub_04(d) (range 16) 11619 | -6/Archives | Discovered exit to Factory (range 16) 11693 | -6/Archives | Entered Hub_04(d) 11693 | -6/Hub_04(d) | Accompanied by 7 allies 11788 | -6/Hub_04(d) | System corruption reached 10% 11991 | -6/Hub_04(d) | Build established: Scavenger-Mutant 12551 | -6/Hub_04(d) | Network Hub disabled 12743 | -6/Hub_04(d) | First assault squad dispatched 12743 | -6/Hub_04(d) | Entered Factory 12743 | -5/Factory | Accompanied by 1 ally 12743 | -5/Factory | Evolved 2 slots: Utility x2 13043 | -5/Factory | First assault squad dispatched 13188 | -5/Factory | Lost 3 parts (2u1w) 13201 | -5/Factory | Destroyed 7 combat bots 13597 | -5/Factory | Discovered new exit (range 9) 13653 | -5/Factory | Identified exit to Upper Caves 13861 | -5/Factory | Entered Upper Caves 13962 | -5/Upper Caves | Learned Factory terminal intel 14039 | -5/Upper Caves | Learned Factory non-interactive machine intel 14313 | -5/Upper Caves | Encountered a Warlord checkpoint 14328 | -5/Upper Caves | Discovered new exit (range 12) 14344 | -5/Upper Caves | Identified exit to Upper Caves 14422 | -5/Upper Caves | Entered a destroyed Warlord outpost 14463 | -5/Upper Caves | Entered another Upper Caves area 14498 | -5/Upper Caves | Attracted the attention of an 0b10 checkpoint 14540 | -5/Upper Caves | Discovered new exit (range 11) 14563 | -5/Upper Caves | Identified exit to Factory 15138 | -5/Upper Caves | Discovered new exit (range 5) 15144 | -5/Upper Caves | Identified exit to Warlord 15195 | -5/Upper Caves | Entered Warlord 15404 | -5/Warlord | Learned Armory emergency access door positions 15404 | -5/Warlord | Learned Testing stockpile data 15406 | -5/Warlord | Learned 4 Research zone layouts 15406 | -5/Warlord | Learned 4 Command zone layouts 15407 | -5/Warlord | Learned Testing security intel 15407 | -5/Warlord | Learned Factory fabricator intel 15739 | -5/Warlord | Opened Warlord's prototype stash 15746 | -5/Warlord | Found Prototype Reactor 15754 | -5/Warlord | Found Prototype Device 15754 | -5/Warlord | Identified Thermal Barrier 15757 | -5/Warlord | Found Prototype Processor 15757 | -5/Warlord | Identified Exp. Core Analyzer 15764 | -5/Warlord | Found Prototype Hackware 15811 | -5/Warlord | Met Warlord 15836 | -5/Warlord | Warlord's base attacked by MAIN.C 16097 | -5/Warlord | Spotted B-86 Titan 16186 | -5/Warlord | Warlord forces counterattacked 16227 | -5/Warlord | Opened side exit 16250 | -5/Warlord | Spotted Striker 16255 | -5/Warlord | Spotted Striker 16257 | -5/Warlord | Spotted Striker 16257 | -5/Warlord | Discovered new exit (range 14) 16258 | -5/Warlord | Spotted Striker 16287 | -5/Warlord | Core integrity fell below 50% 16298 | -5/Warlord | Identified exit to Proximity Caves 16300 | -5/Warlord | Destroyed 11 combat bots 16300 | -5/Warlord | Entered Proximity Caves 16327 | -4/Proximity Caves | Lost 10 parts (1p2n5u2w) 16528 | -4/Proximity Caves | Received a Behemoth hack from an annoying Tinkerer 16771 | -4/Proximity Caves | Spotted B-86 Titan 16784 | -4/Proximity Caves | Spotter reported a threat 16795 | -4/Proximity Caves | Destroyed B-86 Titan 16869 | -4/Proximity Caves | Ambushed by research squad 16950 | -4/Proximity Caves | Spotter reported a threat 16961 | -4/Proximity Caves | Learned Research emergency access door positions 17050 | -4/Proximity Caves | Discovered exit to Factory (range 6) 17105 | -4/Proximity Caves | Entered Factory 17105 | -4/Factory | Evolved 2 slots: Utility x1, Weapon x1 17106 | -4/Factory | Loaded intel: 212 non-interactive machine locations 17107 | -4/Factory | Loaded intel: 23 terminal locations 17108 | -4/Factory | Loaded intel: 6 fabricator locations 17167 | -4/Factory | Identified System Mapper 17355 | -4/Factory | Search patrols dispatched 17604 | -4/Factory | Build established: Scavenger-Tank 18095 | -4/Factory | Cargo convoy interrupted 18101 | -4/Factory | Garrison activated, responded to threat 18110 | -4/Factory | Identified Vortex Chain Reactor 18125 | -4/Factory | Destroyed 14 combat bots 18132 | -4/Factory | Lost 4 parts (2p2u) 18302 | -4/Factory | Repaired Broken Centrium Heavy Treads 18437 | -4/Factory | Repaired Centrium Heavy Treads 18458 | -4/Factory | Build established: Hacker-Tank 18592 | -4/Factory | Found Prototype Launcher 18592 | -4/Factory | Identified Adv. Micro-nuke Launcher 18601 | -4/Factory | Found Prototype Device 18601 | -4/Factory | Identified Exp. Thermal Defense Suite 18614 | -4/Factory | Found Adv. Micro-nuke Launcher 18663 | -4/Factory | Found Prototype Hackware 18663 | -4/Factory | Identified Exp. Hacking Suite 18855 | -4/Factory | First assault squad dispatched 19230 | -4/Factory | Incoming assault squad redirected 19432 | -4/Factory | Central database locked down 19717 | -4/Factory | Watched by a mysterious "MATRIX" hacker 20047 | -4/Factory | Destroyed 10 combat bots 20047 | -4/Factory | Lost 7 parts (2p3u2w) 20160 | -4/Factory | Fabricated Imp. Cryofiber Web? 20217 | -4/Factory | Lost 5 parts (1p2u2w) 20273 | -4/Factory | Lost 4 parts (1p1n1u1w) 20275 | -4/Factory | System corruption reached 10% 20373 | -4/Factory | Incoming assault squad redirected 20384 | -4/Factory | Incoming assault squad redirected 20414 | -4/Factory | Core integrity fell below 50% 20438 | -4/Factory | Released all parts (5) 20446 | -4/Factory | Identified exit to Research 20467 | -4/Factory | Lost 10 parts (1p2n4u3w) 20481 | -4/Factory | Core integrity fell below 20% 20485 | -4/Factory | Entered Research 20485 | -3/Research | Evolved 2 slots: Power x1, Utility x1 20566 | -3/Research | Garrison activated, responded to threat 20685 | -3/Research | Revision forces began assault on 0b10 20708 | -3/Research | Met up with Revision 17++ 20719 | -3/Research | Build established: Mutant 20779 | -3/Research | Lost 3 allies 20856 | -3/Research | Lost 10 parts (3p3n3u1w) 20972 | -3/Research | Lost 18 parts (3p6n4u5w) 21162 | -3/Research | Core integrity fell below 50% 21185 | -3/Research | Research terminal network offline 21225 | -3/Research | Spotted B-86 Titan 21297 | -3/Research | Spotted Striker 21323 | -3/Research | Released all parts (10) 21334 | -3/Research | Discovered new exit (range 5) 21339 | -3/Research | Entered Armory 21354 | -3/Armory | Lost 9 parts (3p3n1u2w) 21420 | -3/Armory | Core integrity fell below 20% 21491 | -3/Armory | Identified exit to Research 21518 | -3/Armory | Entered Research 21518 | -2/Research | Warlord forces began assault on 0b10 21518 | -2/Research | Evolved 2 slots: Utility x1, Weapon x1 21528 | -2/Research | Identified exit to Access 21628 | -2/Research | Research machine network offline 21689 | -2/Research | System corruption reached 10% 21697 | -2/Research | Released all parts (4) 21727 | -2/Research | Lost 6 parts (1p3n1u1w) 21745 | -2/Research | Spotted B-90 Cyclops 21773 | -2/Research | P-80 Master assimilated allied DE-80T(l) 21777 | -2/Research | P-80 Master assimilated allied IL-9FW(D) 21777 | -2/Research | Spotted IL-9FW(D) 21797 | -2/Research | P-80 Master assimilated allied L4-OR2(S) 21830 | -2/Research | Lost 5 allies 21831 | -2/Research | Borebot progress halted 21881 | -2/Research | Borebot progress halted 21898 | -2/Research | Spotted Striker 21898 | -2/Research | Spotted Striker 21910 | -2/Research | Released all parts (5) 21954 | -2/Research | Lost 3 allies 22100 | -2/Research | Spotted Striker 22100 | -2/Research | Met up with Warlord 22363 | -2/Research | Met DD-05H 22383 | -2/Research | Spotted Executioner 22396 | -2/Research | Spotted Striker 22524 | -2/Research | Warlord invited to help at Command 22524 | -2/Research | Given Cave Seal Controls access code 22535 | -2/Research | Spotted Striker 22562 | -2/Research | Found Hvy. Reflective Plating 22740 | -2/Research | Build established: Scavenger-Tank 22952 | -2/Research | Entered Access 22952 | -1/Access | Evolved 2 slots: Propulsion x2 22980 | -1/Access | P-80 Master assimilated allied 59-GYO(l) 23023 | -1/Access | Lost 4 allies 23067 | -1/Access | Destroyed 8 combat bots 23075 | -1/Access | Garrison activated, responded to threat 23317 | -1/Access | Lost 9 parts (2p2n4u1w) 23397 | -1/Access | Garrison activated, responded to threat 23427 | -1/Access | System corruption reached 10% 23428 | -1/Access | Released all parts (15) 23444 | -1/Access | Lost 6 parts (1p3u2w) 23451 | -1/Access | Incoming investigation squad redirected 23457 | -1/Access | Core integrity fell below 50% 23499 | -1/Access | Core integrity fell below 20% 23509 | -1/Access | Spotted B-99 Colossus 23514 | -1/Access | Destroyed by S-43 Plague with Heavy Machine Gun Last Messages --------------- 23448_ Slammed into P-80 Master. 23449_ Slammed into G-73 Enforcer. 23451_ ALERT: Higher priority target reported, redirecting investigation. 23451_ Slammed into G-73 Enforcer. 23452_ Critical hit (Burn: +37). 23453_ Slammed into G-73 Enforcer. 23453_ Destabilizing: Core damaged (-80). 23454_ K-01 Serf collects debris. 23455_ U-05 Engineer lays Concrete. 23458_ K-01 Serf collects debris. 23459_ Acquired 56 matter. 23462_ K-01 Serf collects debris. 23472_ System corrupted: Component data lost. 23485_ P-80 Master resets P-80 Master, system corruption cleaned. 23489_ System corrupted: Matter fused (-5). 23510_ Penetrated by Slug. 23513_ Wave Collapse Detector explodes. 23513_ P-80 Master destroyed. Map ----- +----------------------------------------------------+ | ??????????????# ??# #"""???? | | ??????????????# ?# #??????? | | ??????????????# ?# #??????? | | ??????????????# # #??????? | | ??????????????# # #??????? | | ??????????????# " + #??????? | | ?????????????????""" = # #??????? | | ????????????????? """ # #??????? | | ????????????????? " ?# #??????? | | ???????????????? ?####### ##??????? | | ??????????????? ????????# #???????? | | ??????????????# ????????# #???????? | | ??????????????##########?????????# #???????? | | ??????? ########################## #######?? | | ??????# pp | | ?????? | | ?????# | | ?????# = ! | | ?????# %= ? | | ????? =[ ? | | ????? =! " ?? | | ?????# !! """ "F "" ?? | | ?????? """ """"???? | | ??????? ! " ""?????? | | ??????? ss ?????? | | ????????? s @ ????? | | ????????? ss ????? | | ????????? ########### ????? | | ????????? ??????????? # ??????? | | ?????????????????????? # ????????? | | ????????????????????? # ### ??????????? | | ????????????????????? = # #?? ??????????? | | ????????????????????# # #???? ??????????? | | ????????????????????#########+??????? ???????????? | | ?????????????????????????????????????????????????? | | ?????????????????????????????????????????????????? | | ?????????????????????????????????????????????????? | | ?????????????????????????????????????????????????? | | ?????????????????????????????????????????????????? | | ?????????????????????????????????????????????????? | | ?????????????????????????????????????????????????? | | ?????????????????????????????????????????????????? | | ?????????????????????????????????????????????????? | | ?????????????????????????????????????????????????? | | ?????????????????????????????????????????????????? | | ?????????????????????????????????????????????????? | | ?????????????????????????????????????????????????? | | ?????????????????????????????????????????????????? | | ?????????????????????????????????????????????????? | | ?????????????????????????????????????????????????? | +----------------------------------------------------+ Best States ------------- Heat Dissipation 198 Coolant Potential 100 Energy Generation 83 Energy Capacity 830 Matter Stores 300 Matter Capacity 300 Sight Range 22 Robot Scan Range 18 Terrain Scan Range 24 Terrain Scan Density 10 Power Amplification 30 Corruption Block 11 Armor Coverage 2100 Resistance: TH 50 Weapon Shielding 33 Phase Shifting 15 Evasion (%) 76 Targeting Accuracy 18 Core Analysis 8 Armor Integrity Analysis 40 Recoil Reduction 4 Particle Charging 20 Offensive Hacking 28 Item Schematics ----------------- Combat Drone Bay | -7/Data Miner | Free Lgt. Regenerative Plating | -7/Data Miner | Free Biomechanical Wings | -7/Data Miner | Free Gravity Neutralizer | -7/Data Miner | Free Com. Ion Cannon | -7/Data Miner | Free Gyrokinetic Inverter | -7/Data Miner | Free Variable Charge Gun | -7/Data Miner | Free Imp. Component Analysis Suite | -7/Data Miner | Free Imp. Cryofiber Web | -5/Factory | Hacked Centrium Heavy Treads | -4/Factory | Scanalyzed Nova Cannon | -4/Factory | Hacked Robot Schematics ------------------ H-55 Commando | -7/Data Miner | Free M-22 Extractor | -7/Data Miner | Free L-41 Fighter | -7/Data Miner | Free I-36 Angel | -7/Data Miner | Free A-15 Conveyor | -7/Data Miner | Free Y-64 Sentinel | -7/Data Miner | Free Fabricated ------------ Imp. Cryofiber Web | x2 | -4/Factory Repaired ---------- Centrium Heavy Treads | 17% | -4/Factory | Broken Centrium Heavy Treads | 6% | -4/Factory Studied --------- Hvy. Particle Cannon | -8/Materials | Hacked Carbon-fiber Leg | -7/Factory | Hacked Hvy. Ion Cannon | -7/Factory | Hacked VSS Leg | -7/Factory | Hacked Adv. Plasma Cannon | -4/Factory | Hacked Alien Tech Used ----------------- None Achievements -------------- Decoder Ring Challenges ------------ None Game ------ Seed CorruptionCouplerMachine Manual? 0 Play Time 04:21:56 Cumulative 213.5 hours Start 2026.08.09 @ 16:28:54 End 2026.08.09 @ 21:26:57 Sessions 1 Manual Loads 0 Difficulty Rogue Special Mode None Game No. 220 Rogue 166 Adventurer 54 Explorer 0 Win Type - Total 9 Types 5/0/1/1/0/0/0/1/0/1 Lore% 72 Gallery% 61 Achievement% 57 Wizard Run 0 Options --------- Layout 1 ASCII 0 Keyboard 0 Movement Mouse Keybinds 1 Fullscreen 2 Font 32/Tamsyn Map View 50x35 Zoom Use 0% Tactical HUD 1 Map Filters NONE Filters NONE Steam 1 RUN: ffdcd518-427d-48a4-9543-370b418d7287